fUSD/lending_fUSD_20250911
["ID","MTS","AMOUNT","RATE_DAILY","PERIOD"]
[384857410,1757595278184,-1000.0,0.00037333,30]
[384857411,1757595278209,-1000.0,0.00037333,30]
[384857412,1757595278235,-1187.78,0.00037333,30]
[384857413,1757595278260,-916.09690213,0.00037348,30]
[384857414,1757595278285,-214.0,0.0003735,30]
[384857415,1757595278312,-1247.42,0.00037422,60]
[384857416,1757595278337,-300.0,0.00037459,84]
[384857417,1757595278362,-2693.123,0.00037478,55]
[384857418,1757595278390,-50000.0,0.00037487,30]
[384857419,1757595278417,-50000.0,0.00037487,31]
[384857420,1757595278442,-50000.0,0.00037487,32]
[384857421,1757595278468,-50000.0,0.00037487,33]
[384857422,1757595278494,-50000.0,0.00037487,34]
[384857423,1757595278519,-50000.0,0.00037487,35]
[384857424,1757595278545,-50000.0,0.00037487,36]
[384857425,1757595278573,-50000.0,0.00037487,37]
[384857426,1757595278598,-50000.0,0.00037487,38]
[384857427,1757595278624,-50000.0,0.00037487,39]
[384857428,1757595278649,-50000.0,0.00037487,40]
[384857429,1757595278673,-1029.92427,0.00037488,30]
[384857430,1757595278697,-267.44,0.00037488,60]
[384857431,1757595278732,-150.0,0.00037508,120]
[384857432,1757595278757,-1247.42,0.00037522,60]
[384857433,1757595278783,-500.0,0.00037534,30]
[384857434,1757595278808,-160.61505105,0.00037595,30]
[384857435,1757595278833,-1000.0,0.00037607,30]
[384857436,1757595278858,-1247.42,0.00037622,60]
[384857437,1757595278886,-150.0,0.00037677,120]
[384857438,1757595278911,-1029.92427,0.00037688,30]
[384857439,1757595278937,-1247.42,0.00037722,60]
[384857440,1757595278964,-1444.0,0.00037753,120]
[384857441,1757595278991,-5000.0,0.000378,120]
[384857442,1757595279017,-202.24,0.00037808,60]
[384857443,1757595279041,-400.0,0.00037808,120]
[384857444,1757595279068,-1247.42,0.00037822,60]
[384857445,1757595279095,-1029.92427,0.00037888,30]
[384857446,1757595279122,-202.24,0.000379,120]
[384857447,1757595279148,-20000.0,0.000379,30]
[384857448,1757595279174,-1872.95692841,0.000379,120]
[384857449,1757595279200,-1247.42,0.00037922,60]
[384857450,1757595279233,-1100.0,0.00038,30]
[384857451,1757595279260,-1800.0,0.00038,39]
[384857452,1757595279287,-1000.79456854,0.00038,120]
[384857453,1757595279313,-156.0,0.00038,120]
[384857454,1757595279340,-200.0,0.00038,120]
[384857455,1757595279367,-2654.50661747,0.00038,120]
[384857456,1757595279394,-1247.42,0.00038022,60]
[384857457,1757595279420,-1793.50887776,0.0003807,30]
[384857458,1757595279447,-1029.92427,0.00038088,30]
[384857459,1757595279474,-1247.42,0.00038122,60]
[384857460,1757595279501,-150.0,0.00038217,120]
[384857461,1757595279527,-1247.42,0.00038222,60]
[384857462,1757595279553,-500.0,0.00038288,30]
[384857463,1757595279580,-1029.92427,0.00038288,30]
[384857464,1757595279606,-150.0,0.00038301,120]
[384857465,1757595279633,-1247.42,0.00038322,60]
[384857466,1757595279659,-400.0,0.00038356,120]
[384857467,1757595279688,-1247.42,0.00038422,120]
[384857468,1757595279718,-1029.92427,0.00038488,30]
[384857469,1757595279745,-1247.42,0.00038522,120]
[384857470,1757595279772,-1247.42,0.00038622,120]
[384857471,1757595279799,-1454.0,0.0003868,120]
[384857472,1757595279828,-1029.92427,0.00038688,30]
[384857473,1757595279868,-1247.42,0.00038722,120]
[384857474,1757595279901,-150.0,0.00038785,120]
[384857475,1757595279931,-150.0,0.00038795,120]
[384857476,1757595279964,-5000.0,0.000388,120]
[384857477,1757595279995,-1247.42,0.00038822,120]
[384857478,1757595280028,-3063.62590152,0.0003889,30]
[384857479,1757595280056,-152.0,0.000389,120]
[384857480,1757595280084,-400.0,0.00038904,120]
[384857481,1757595280112,-1247.42,0.00038922,120]
[384857482,1757595280139,-252.51156328,0.00038996,90]
[384857483,1757595280167,-1800.0,0.00039,40]
[384857484,1757595280193,-2900.0,0.00039,90]
[384857485,1757595280221,-10221.0,0.00039,120]
[384857486,1757595280247,-1491.99724833,0.00039,120]
[384857487,1757595280275,-6036.68148986,0.00039,120]
[384857488,1757595280306,-1882.73878716,0.00039,120]
[384857489,1757595280334,-1247.42,0.00039022,120]
[384857490,1757595280363,-500.0,0.00039041,30]
[384857491,1757595280390,-1029.92427,0.00039088,30]
[384857492,1757595280417,-1247.42,0.00039122,120]
[384857493,1757595280446,-1247.42,0.00039222,120]
[384857494,1757595280804,-1500.0,0.00039248,31]
[384857495,1757595280832,-1029.92427,0.00039288,30]
[384857496,1757595280862,-1247.42,0.00039322,120]
[384857497,1757595280893,-1247.42,0.00039422,120]
[384857498,1757595280925,-400.0,0.00039452,120]
[384857499,1757595280959,-1029.92427,0.00039488,30]
[384857500,1757595280990,-463.22237565,0.000395,120]
[384857501,1757595281020,-1247.42,0.00039522,120]
[384857502,1757595281050,-2906.30214305,0.00039536,33]
[384857503,1757595281079,-150.0,0.00039539,120]
[384857504,1757595281108,-1247.42,0.00039622,120]
[384857505,1757595281137,-1179.31,0.00039678,120]
[384857506,1757595281165,-1029.92427,0.00039688,30]
[384857507,1757595281193,-165.4704374,0.000397,120]
[384857508,1757595281220,-171.90578185,0.000397,120]
[384857509,1757595281247,-1247.42,0.00039722,120]
[384857510,1757595281273,-500.0,0.00039795,30]
[384857511,1757595281300,-873.04187936,0.000398,30]
[384857512,1757595281326,-5735.16539235,0.000398,120]
[384857513,1757595281353,-5000.0,0.000398,120]
[384857514,1757595281380,-1247.42,0.00039822,120]
[384857515,1757595281406,-1022.66,0.00039873,120]
[384857516,1757595281432,-1029.92427,0.00039888,30]
[384857517,1757595281458,-200.26737503,0.000399,120]
[384857518,1757595281485,-1247.42,0.00039922,120]
[384857519,1757595281511,-1831.2480664,0.00039999,120]
[384857520,1757595281538,-50000.0,0.0004,40]
[384857521,1757595281564,-1880.94173245,0.0004,120]
[384857522,1757595281589,-213.66952899,0.0004,120]
[384857523,1757595281615,-792.25044937,0.0004,120]
[384857524,1757595281642,-1410.97597706,0.0004,120]
[384857525,1757595281669,-259.10054059,0.0004,30]
[384857526,1757595281701,-232.94790401,0.0004,30]
[384857527,1757595281728,-200.0,0.0004,120]
[384857528,1757595281755,-202.99438908,0.0004,120]
[384857529,1757595281782,-845.52875734,0.0004,30]
[384857530,1757595281809,-523.06205034,0.0004,30]
[384857531,1757595281835,-1007.77750331,0.0004,120]
[384857532,1757595281863,-10000.0,0.0004,120]
[384857533,1757595281892,-25000.0,0.0004,120]
[384857534,1757595281920,-2257.0,0.0004,120]
[384857535,1757595281949,-587.67671301,0.0004,120]
[384857536,1757595281979,-799.90406949,0.0004,120]
[384857537,1757595282006,-399.51101161,0.0004,120]
[384857538,1757595282034,-1658.46649,0.0004,120]
[384857539,1757595282062,-779.43349711,0.0004,120]
[384857540,1757595282090,-35120.0,0.0004,120]
[384857541,1757595282119,-1800.0,0.0004,41]
[384857542,1757595282147,-2546.0,0.0004,120]
[384857543,1757595282174,-200.0,0.0004,120]
[384857544,1757595282202,-6963.12681259,0.0004,120]
[384857545,1757595282229,-8242.45661371,0.0004,30]
[384857546,1757595282256,-593.64543709,0.0004,120]
[384857547,1757595282283,-1000.0,0.0004,120]
[384857548,1757595282310,-3000.0,0.0004,120]
[384857549,1757595282336,-2592.97179297,0.0004,90]
[384857550,1757595282362,-2107.73082039,0.0004,120]
[384857551,1757595282389,-204.56,0.0004,30]
[384857552,1757595282415,-1380.23,0.0004,120]
[384857553,1757595282442,-30000.0,0.0004,120]
[384857554,1757595282473,-215.47,0.0004,120]
[384857555,1757595282502,-303.08,0.0004,120]
[384857556,1757595282530,-2455.79,0.0004,120]
[384857557,1757595282559,-828.45,0.0004,120]
[384857558,1757595282586,-678.16,0.0004,120]
[384857559,1757595282614,-382.22018213,0.0004,120]
[384857560,1757595282641,-400.0,0.0004,120]
[384857561,1757595282669,-1412.43537401,0.0004,120]
[384857562,1757595282697,-1247.42,0.00040022,120]
[384857563,1757595282724,-1029.92427,0.00040088,30]
[384857564,1757595282751,-1247.42,0.00040122,120]
[384857565,1757595282778,-508.08830656,0.00040202,30]
[384857566,1757595282805,-1800.0,0.00040211,30]
[384857567,1757595282833,-1247.42,0.00040222,120]
[384857568,1757595282860,-1800.0,0.00040255,30]
[384857569,1757595282889,-500.0,0.00040262,30]
[384857570,1757595282915,-500.0,0.00040278,30]
[384857571,1757595282943,-1029.92427,0.00040288,30]
[384857572,1757595282972,-1800.0,0.00040312,30]
[384857573,1757595283000,-1247.42,0.00040322,120]
[384857574,1757595283027,-1000.0,0.00040333,60]
[384857575,1757595283054,-500.0,0.00040344,30]
[384857576,1757595283082,-1247.42,0.00040422,120]
[384857577,1757595283109,-500.0,0.00040444,30]
[384857578,1757595283137,-500.0,0.00040447,30]
[384857579,1757595283164,-1800.0,0.0004045,30]
[384857580,1757595283191,-1029.92427,0.00040488,30]
[384857581,1757595283217,-639.41008572,0.000405,120]
[384857582,1757595283243,-1000.0,0.000405,120]
[384857583,1757595283270,-152.0,0.000405,120]
[384857584,1757595283295,-500.0,0.00040518,30]
[384857585,1757595283323,-1247.42,0.00040522,120]
[384857586,1757595283349,-400.0,0.00040547,120]
[384857587,1757595283376,-956.50792874,0.00040548,30]
[384857588,1757595283403,-1247.42,0.00040622,120]
[384857589,1757595283429,-1000.0,0.00040666,60]
[384857590,1757595283456,-150.0,0.00040666,120]
[384857591,1757595283483,-1029.92427,0.00040688,30]
[384857592,1757595283509,-1800.0,0.00040697,30]
[384857593,1757595283535,-1247.42,0.00040722,120]
[384857594,1757595283561,-1800.0,0.00040791,30]
[384857595,1757595283588,-5000.0,0.000408,120]
[384857596,1757595283614,-1247.42,0.00040822,120]
[384857597,1757595283870,-1200.0,0.00040826,30]
[384857598,1757595283939,-500.0,0.00040843,30]
[384857599,1757595283966,-1800.0,0.00040863,30]
[384857600,1757595283993,-1200.0,0.00040867,30]
[384857601,1757595284020,-150.0,0.00040876,120]
[384857602,1757595284046,-1029.92427,0.00040888,30]
[384857603,1757595284072,-600.0,0.00040903,30]
[384857604,1757595284097,-1200.0,0.0004091,30]
[384857605,1757595284124,-1247.42,0.00040922,120]
[384857606,1757595284150,-724.07411317,0.00040999,120]
[384857607,1757595284177,-50000.0,0.00041,41]
[384857608,1757595284203,-2777.7265732,0.00041,30]
[384857609,1757595284229,-258.29698116,0.00041,120]
[384857610,1757595284255,-10000.0,0.00041,120]
[384857611,1757595284283,-943.37,0.00041,120]
[384857612,1757595284310,-1800.0,0.00041,42]
[384857613,1757595284336,-506.96324889,0.00041,30]
[384857614,1757595284362,-2684.0,0.00041,120]
[384857615,1757595284389,-10221.0,0.00041,120]
[384857616,1757595284415,-2518.61816506,0.00041,120]
[384857617,1757595284441,-2598.97172262,0.00041,120]
[384857618,1757595284468,-1247.42,0.00041022,120]
[384857619,1757595284496,-500.0,0.00041026,30]
[384857620,1757595284522,-1029.92427,0.00041088,30]
[384857621,1757595284548,-390.37329522,0.00041095,120]
[384857622,1757595284573,-668.62,0.00041096,120]
[384857623,1757595284598,-3201.38,0.00041096,120]
[384857624,1757595284624,-2000.0,0.00041096,120]
[384857625,1757595284649,-2000.0,0.00041096,120]
[384857626,1757595284675,-2000.0,0.00041096,120]
[384857627,1757595284700,-2000.0,0.00041096,120]
[384857628,1757595284726,-2000.0,0.00041096,120]
[384857629,1757595284751,-2000.0,0.00041096,120]
[384857630,1757595284776,-2000.0,0.00041096,120]
[384857631,1757595284801,-2000.0,0.00041096,120]
[384857632,1757595284827,-2000.0,0.00041096,120]
[384857633,1757595284852,-2000.0,0.00041096,120]
[384857634,1757595284880,-2000.0,0.00041096,120]
[384857635,1757595284908,-2000.0,0.00041096,120]
[384857636,1757595284935,-2000.0,0.00041096,120]
[384857637,1757595284962,-2000.0,0.00041096,120]
[384857638,1757595284989,-2000.0,0.00041096,120]
[384857639,1757595285016,-2000.0,0.00041096,120]
[384857640,1757595285042,-2000.0,0.00041096,120]
[384857641,1757595285068,-2000.0,0.00041096,120]
[384857642,1757595285095,-2000.0,0.00041096,120]
[384857643,1757595285123,-2000.0,0.00041096,120]
[384857644,1757595285149,-2000.0,0.00041096,120]
[384857645,1757595285175,-2000.0,0.00041096,120]
[384857646,1757595285202,-2000.0,0.00041096,120]
[384857647,1757595285229,-2000.0,0.00041096,120]
[384857648,1757595285254,-2000.0,0.00041096,120]
[384857649,1757595285281,-2000.0,0.00041096,120]
[384857650,1757595285308,-2000.0,0.00041096,120]
[384857651,1757595285333,-2000.0,0.00041096,120]
[384857652,1757595285359,-2000.0,0.00041096,120]
[384857653,1757595285385,-500.0,0.00041096,30]
[384857654,1757595285409,-500.0,0.00041096,30]
[384857655,1757595285435,-2000.0,0.00041096,120]
[384857656,1757595285461,-2000.0,0.00041096,120]
[384857657,1757595285485,-2000.0,0.00041096,120]
[384857658,1757595285510,-2000.0,0.00041096,120]
[384857659,1757595285535,-2000.0,0.00041096,120]
[384857660,1757595285560,-2000.0,0.00041096,120]
[384857661,1757595285584,-543.0,0.00041096,120]
[384857662,1757595285610,-500.0,0.00041096,30]
[384857663,1757595285635,-500.0,0.00041096,30]
[384857664,1757595285659,-500.0,0.00041096,30]
[384857665,1757595285683,-500.0,0.00041096,30]
[384857666,1757595285708,-500.0,0.00041096,30]
[384857667,1757595285734,-500.0,0.00041096,30]
[384857668,1757595285758,-500.0,0.00041096,30]
[384857669,1757595285782,-500.0,0.00041096,30]
[384857670,1757595285807,-500.0,0.00041096,30]
[384857671,1757595285832,-500.0,0.00041096,30]
[384857672,1757595285856,-500.0,0.00041096,30]
[384857673,1757595285883,-500.0,0.00041096,30]
[384857674,1757595285911,-500.0,0.00041096,30]
[384857675,1757595285937,-500.0,0.00041096,30]
[384857676,1757595285961,-500.0,0.00041096,30]
[384857677,1757595285987,-500.0,0.00041096,30]
[384857678,1757595286013,-500.0,0.00041096,30]
[384857679,1757595286039,-500.0,0.00041096,30]
[384857680,1757595286065,-500.0,0.00041096,30]
[384857681,1757595286093,-500.0,0.00041096,30]
[384857682,1757595286118,-500.0,0.00041096,30]
[384857683,1757595286143,-500.0,0.00041096,30]
[384857684,1757595286167,-500.0,0.00041096,30]
[384857685,1757595286192,-500.0,0.00041096,30]
[384857686,1757595286216,-500.0,0.00041096,30]
[384857687,1757595286242,-500.0,0.00041096,30]
[384857688,1757595286268,-500.0,0.00041096,30]
[384857689,1757595286293,-500.0,0.00041096,30]
[384857690,1757595286318,-500.0,0.00041096,30]
[384857691,1757595286344,-500.0,0.00041096,30]
[384857692,1757595286372,-500.0,0.00041096,30]
[384857693,1757595286400,-500.0,0.00041096,30]
[384857694,1757595286425,-500.0,0.00041096,30]
[384857695,1757595286450,-500.0,0.00041096,30]
[384857696,1757595286474,-500.0,0.00041096,30]
[384857697,1757595286499,-500.0,0.00041096,30]
[384857698,1757595286524,-500.0,0.00041096,30]
[384857699,1757595286549,-500.0,0.00041096,30]
[384857700,1757595286574,-500.0,0.00041096,30]
[384857701,1757595286836,-500.0,0.00041096,30]
[384857702,1757595286863,-500.0,0.00041096,30]
[384857703,1757595286890,-500.0,0.00041096,30]
[384857704,1757595286918,-500.0,0.00041096,30]
[384857705,1757595286942,-500.0,0.00041096,30]
[384857706,1757595286967,-500.0,0.00041096,30]
[384857707,1757595286993,-4000.0,0.00041096,30]
[384857708,1757595287020,-500.0,0.00041096,30]
[384857709,1757595287045,-500.0,0.00041096,30]
[384857710,1757595287070,-500.0,0.00041096,30]
[384857711,1757595287096,-500.0,0.00041096,30]
[384857712,1757595287123,-500.0,0.00041096,30]
[384857713,1757595287148,-500.0,0.00041096,30]
[384857714,1757595287173,-500.0,0.00041096,30]
[384857715,1757595287198,-500.0,0.00041096,30]
[384857716,1757595287224,-500.0,0.00041096,30]
[384857717,1757595287249,-500.0,0.00041096,30]
[384857718,1757595287275,-500.0,0.00041096,30]
[384857719,1757595287302,-500.0,0.00041096,30]
[384857720,1757595287329,-500.0,0.00041096,30]
[384857721,1757595287353,-500.0,0.00041096,30]
[384857722,1757595287378,-500.0,0.00041096,30]
[384857723,1757595287404,-500.0,0.00041096,30]
[384857724,1757595287429,-500.0,0.00041096,30]
[384857725,1757595287453,-500.0,0.00041096,30]
[384857726,1757595287480,-500.0,0.00041096,30]
[384857727,1757595287506,-500.0,0.00041096,30]
[384857728,1757595287531,-500.0,0.00041096,30]
[384857729,1757595287557,-500.0,0.00041096,30]
[384857730,1757595287582,-500.0,0.00041096,30]
[384857731,1757595287607,-500.0,0.00041096,30]
[384857732,1757595287632,-500.0,0.00041096,30]
[384857733,1757595287656,-401.0,0.00041096,30]
[384857734,1757595287681,-5000.0,0.0004111,120]
[384857735,1757595287706,-600.0,0.00041111,30]
[384857736,1757595287733,-1247.42,0.00041122,120]
[384857737,1757595287758,-391.0,0.0004114,30]
[384857738,1757595287786,-1800.0,0.00041162,30]
[384857739,1757595287814,-150.0,0.00041172,120]
[384857740,1757595287840,-600.0,0.00041206,30]
[384857741,1757595287867,-1247.42,0.00041222,120]
[384857742,1757595287897,-500.0,0.00041224,30]
[384857743,1757595287923,-500.0,0.00041271,30]
[384857744,1757595287949,-1029.92427,0.00041288,30]
[384857745,1757595287976,-1247.42,0.00041322,120]
[384857746,1757595288003,-1000.0,0.00041333,60]
[384857747,1757595288030,-1800.0,0.00041368,30]
[384857748,1757595288057,-156.0,0.000414,120]
[384857749,1757595288084,-1247.42,0.00041422,120]
[384857750,1757595288112,-1029.92427,0.00041488,30]
[384857751,1757595288140,-203.770497,0.00041499,120]
[384857752,1757595288168,-1000.0,0.000415,120]
[384857753,1757595288196,-3000.0,0.000415,120]
[384857754,1757595288231,-1800.0,0.00041507,30]
[384857755,1757595288259,-500.0,0.0004152,30]
[384857756,1757595288287,-1247.42,0.00041522,120]
[384857757,1757595288315,-1200.0,0.00041567,30]
[384857758,1757595288342,-500.0,0.00041572,30]
[384857759,1757595288370,-1247.42,0.00041622,120]
[384857760,1757595288397,-500.0,0.00041645,30]
[384857761,1757595288423,-500.0,0.00041655,30]
[384857762,1757595288450,-150.0,0.00041666,30]
[384857763,1757595288475,-150.0,0.00041666,30]
[384857764,1757595288502,-150.0,0.00041666,30]
[384857765,1757595288528,-1000.0,0.00041666,60]
[384857766,1757595288555,-500.0,0.00041672,30]
[384857767,1757595288583,-1029.92427,0.00041688,30]
[384857768,1757595288613,-150.0,0.00041702,120]
[384857769,1757595288641,-1247.42,0.00041722,120]
[384857770,1757595288668,-500.0,0.00041734,30]
[384857771,1757595288695,-1830.38392069,0.0004177,60]
[384857772,1757595288720,-300.69202824,0.000418,120]
[384857773,1757595288747,-5000.0,0.000418,120]
[384857774,1757595288776,-1247.42,0.00041822,120]
[384857775,1757595288802,-600.0,0.00041875,30]
[384857776,1757595288829,-500.0,0.00041879,30]
[384857777,1757595288855,-400.0,0.0004188,120]
[384857778,1757595288882,-1029.92427,0.00041888,30]
[384857779,1757595288913,-500.0,0.00041901,30]
[384857780,1757595288941,-1247.42,0.00041922,120]
[384857781,1757595288967,-500.0,0.00041928,30]
[384857782,1757595288995,-500.0,0.00041934,30]
[384857783,1757595289027,-50000.0,0.00042,42]
[384857784,1757595289054,-361.45999915,0.00042,120]
[384857785,1757595289082,-1186.93182854,0.00042,30]
[384857786,1757595289110,-1007.3069403,0.00042,30]
[384857787,1757595289138,-294.9760787,0.00042,30]
[384857788,1757595289165,-236.96764937,0.00042,120]
[384857789,1757595289190,-654.48086639,0.00042,120]
[384857790,1757595289217,-3000.0,0.00042,120]
[384857791,1757595289244,-10000.0,0.00042,120]
[384857792,1757595289272,-200.0,0.00042,120]
[384857793,1757595289299,-900.0,0.00042,43]
[384857794,1757595289326,-500.0,0.00042001,30]
[384857795,1757595289353,-1247.42,0.00042022,120]
[384857796,1757595289381,-500.0,0.00042024,30]
[384857797,1757595289408,-152.0,0.000421,120]
[384857798,1757595289435,-1800.0,0.000421,30]
[384857799,1757595289461,-178.80858453,0.00042121,120]
[384857800,1757595289488,-1247.42,0.00042122,120]
[384857801,1757595289514,-500.0,0.0004213,30]
[384857802,1757595289541,-150.0,0.00042138,120]
[384857803,1757595289568,-1247.42,0.00042222,120]
[384857804,1757595289815,-500.0,0.00042227,30]
[384857805,1757595289842,-500.0,0.00042228,30]
[384857806,1757595289869,-5000.0,0.00042231,120]
[384857807,1757595289898,-500.0,0.000423,30]
[384857808,1757595289925,-3000.0,0.00042319,60]
[384857809,1757595289950,-500.0,0.00042319,60]
[384857810,1757595289977,-1247.42,0.00042322,120]
[384857811,1757595290004,-1000.0,0.00042333,60]
[384857812,1757595290032,-150.0,0.00042364,120]
[384857813,1757595290059,-3581.81565334,0.000424,120]
[384857814,1757595290085,-1200.0,0.00042414,30]
[384857815,1757595290112,-1179.31,0.00042418,120]
[384857816,1757595290138,-1247.42,0.00042422,120]
[384857817,1757595290163,-500.0,0.00042427,30]
[384857818,1757595290189,-500.0,0.00042444,30]
[384857819,1757595290215,-2906.30214305,0.00042463,39]
[384857820,1757595290241,-1200.0,0.00042485,30]
[384857821,1757595290267,-462.84104333,0.000425,120]
[384857822,1757595290293,-1000.0,0.000425,120]
[384857823,1757595290319,-9250.0,0.000425,120]
[384857824,1757595290343,-200.0,0.000425,120]
[384857825,1757595290369,-1247.42,0.00042522,120]
[384857826,1757595290395,-600.0,0.00042562,30]
[384857827,1757595290421,-1800.0,0.00042584,30]
[384857828,1757595290448,-1200.0,0.00042593,60]
[384857829,1757595290473,-1200.0,0.00042615,30]
[384857830,1757595290499,-600.0,0.00042621,30]
[384857831,1757595290524,-1247.42,0.00042622,120]
[384857832,1757595290551,-150.0,0.00042664,120]
[384857833,1757595290575,-1000.0,0.00042666,60]
[384857834,1757595290600,-500.0,0.00042704,30]
[384857835,1757595290627,-1247.42,0.00042722,120]
[384857836,1757595290652,-1800.0,0.00042738,30]
[384857837,1757595290676,-1892.00986115,0.00042745,120]
[384857838,1757595290701,-70972.98208413,0.0004279,120]
[384857839,1757595290726,-549.55896564,0.00042794,100]
[384857840,1757595290751,-500.0,0.00042797,30]
[384857841,1757595290777,-5000.0,0.000428,120]
[384857842,1757595290803,-1247.42,0.00042822,120]
[384857843,1757595290828,-232.10121594,0.00042828,30]
[384857844,1757595290854,-150.0,0.00042828,30]
[384857845,1757595290880,-296.49483878,0.00042828,30]
[384857846,1757595290908,-150.0,0.00042828,30]
[384857847,1757595290933,-419.00047242,0.00042828,30]
[384857848,1757595290960,-150.0,0.00042828,30]
[384857849,1757595290987,-2851.11858003,0.00042828,30]
[384857850,1757595291014,-150.0,0.0004286,120]
[384857851,1757595291040,-600.0,0.00042889,30]
[384857852,1757595291067,-7500.0,0.0004289,120]
[384857853,1757595291092,-2729.80438628,0.000429,120]
[384857854,1757595291118,-1247.42,0.00042922,120]
[384857855,1757595291144,-500.0,0.00042924,30]
[384857856,1757595291169,-1800.0,0.00042952,30]
[384857857,1757595291195,-600.0,0.00042959,30]
[384857858,1757595291221,-50000.0,0.00043,43]
[384857859,1757595291247,-204.57468226,0.00043,120]
[384857860,1757595291272,-50000.0,0.00043,30]
[384857861,1757595291297,-3500.0,0.00043,120]
[384857862,1757595291323,-4279.33854952,0.00043,30]
[384857863,1757595291350,-10000.0,0.00043,120]
[384857864,1757595291376,-1109.47987163,0.00043,30]
[384857865,1757595291403,-4511.52645569,0.00043,120]
[384857866,1757595291430,-689.0,0.00043,120]
[384857867,1757595291456,-10221.0,0.00043,120]
[384857868,1757595291486,-968.34,0.00043,30]
[384857869,1757595291513,-1247.42,0.00043022,120]
[384857870,1757595291540,-1800.0,0.00043053,30]
[384857871,1757595291564,-1200.0,0.00043075,30]
[384857872,1757595291590,-1247.42,0.00043122,120]
[384857873,1757595291617,-1249.78,0.00043137,30]
[384857874,1757595291642,-1249.78,0.00043137,30]
[384857875,1757595291667,-1249.78,0.00043137,30]
[384857876,1757595291692,-1249.78,0.00043137,30]
[384857877,1757595291717,-1362.22199244,0.0004314,120]
[384857878,1757595291741,-1800.0,0.0004316,30]
[384857879,1757595291778,-1800.0,0.00043171,30]
[384857880,1757595291815,-1247.42,0.00043222,120]
[384857881,1757595291853,-1200.0,0.00043282,30]
[384857882,1757595291895,-1156.5925,0.00043286,32]
[384857883,1757595291936,-2000.6339425,0.0004329,120]
[384857884,1757595291979,-2261.44610617,0.000433,120]
[384857885,1757595292016,-2203.11794392,0.000433,120]
[384857886,1757595292055,-600.0,0.00043316,30]
[384857887,1757595292091,-1247.42,0.00043322,120]
[384857888,1757595292128,-1000.0,0.00043333,60]
[384857889,1757595292162,-1200.0,0.00043373,30]
[384857890,1757595292202,-150.0,0.00043389,120]
[384857891,1757595292237,-1249.78,0.00043411,30]
[384857892,1757595292272,-1249.78,0.00043411,30]
[384857893,1757595292305,-3000.0,0.00043415,60]
[384857894,1757595292341,-222.53044012,0.00043415,60]
[384857895,1757595292375,-1247.42,0.00043422,120]
[384857896,1757595292411,-150.0,0.00043455,120]
[384857897,1757595292444,-1434.60916104,0.000435,120]
[384857898,1757595292478,-1000.0,0.000435,120]
[384857899,1757595292512,-1247.42,0.00043522,120]
[384857900,1757595292546,-776.70215198,0.00043525,30]
[384857901,1757595292581,-1200.0,0.0004356,30]
[384857902,1757595292615,-1200.0,0.00043565,30]
[384857903,1757595292648,-1800.0,0.00043585,30]
[384857904,1757595292685,-1247.42,0.00043622,120]
[384857905,1757595292725,-1200.0,0.00043624,30]
[384857906,1757595292760,-600.0,0.00043645,30]
[384857907,1757595293041,-1000.0,0.00043666,60]
[384857908,1757595293080,-1249.78,0.00043685,30]
[384857909,1757595293120,-1249.78,0.00043685,30]